fUSD/lending_fUSD_20251112
["ID","MTS","AMOUNT","RATE_DAILY","PERIOD"]
[393743915,1762960423524,-499.296404,0.00040359,120]
[393743916,1762960423606,-499.296404,0.00040359,120]
[393743917,1762960423695,-499.296404,0.00040359,120]
[393743918,1762960423779,-499.296404,0.00040359,120]
[393743919,1762960423863,-499.296404,0.00040359,120]
[393743920,1762960423967,-499.296404,0.00040359,120]
[393743921,1762960424084,-499.296404,0.00040359,120]
[393743922,1762960424197,-499.296404,0.00040359,120]
[393743923,1762960424304,-499.296408,0.00040359,120]
[393743924,1762960424408,-500.0,0.00040359,31]
[393743925,1762960424495,-157.16745051,0.00040359,31]
[393743926,1762960424584,-500.0,0.00040359,31]
[393743927,1762960424676,-439.18398047,0.00040359,31]
[393743928,1762960424817,-159.90933116,0.00040361,31]
[393743929,1762960424904,-154.115647,0.00040361,120]
[393743930,1762960425005,-151.0,0.00040361,120]
[393743931,1762960425106,-153.212537,0.00040361,120]
[393743932,1762960425202,-153.39399,0.00040361,120]
[393743933,1762960425288,-152.348958,0.00040361,120]
[393743934,1762960425381,-152.822137,0.00040361,120]
[393743935,1762960425471,-151.0,0.00040361,120]
[393743936,1762960425559,-151.0,0.00040361,120]
[393743937,1762960425645,-151.0,0.00040361,120]
[393743938,1762960425730,-153.652512,0.00040361,120]
[393743939,1762960425827,-151.0,0.00040361,60]
[393743940,1762960425926,-300.000016,0.00040361,91]
[393743941,1762960425994,-1200.0,0.00040362,30]
[393743942,1762960426038,-150.0,0.00040362,30]
[393743943,1762960426082,-150.0,0.00040362,30]
[393743944,1762960426125,-150.0,0.00040362,30]
[393743945,1762960426169,-150.0,0.00040362,30]
[393743946,1762960426212,-151.0,0.00040362,120]
[393743947,1762960426254,-151.0,0.00040362,120]
[393743948,1762960426296,-151.0,0.00040362,120]
[393743949,1762960426338,-151.0,0.00040362,120]
[393743950,1762960426384,-151.0,0.00040362,120]
[393743951,1762960426426,-151.0,0.00040362,120]
[393743952,1762960426468,-151.0,0.00040362,120]
[393743953,1762960426512,-151.0,0.00040362,120]
[393743954,1762960426554,-151.0,0.00040362,120]
[393743955,1762960426597,-151.0,0.00040362,120]
[393743956,1762960426641,-158.88059,0.00040362,120]
[393743957,1762960426681,-150.0,0.00040362,30]
[393743958,1762960426720,-150.0,0.00040362,30]
[393743959,1762960426760,-263.19,0.00040362,30]
[393743960,1762960426801,-238.24,0.000404,30]
[393743961,1762960426843,-481.35,0.000404,30]
[393743962,1762960426886,-500.0,0.00041148,120]
[393743963,1762960426929,-266.79973,0.00041648,120]
[393743964,1762960426972,-3940.0,0.00042178,120]
[393743965,1762960427022,-150.0,0.00042239,30]
[393743966,1762960427068,-150.0,0.00042239,30]
[393743967,1762960427117,-150.0,0.00042239,30]
[393743968,1762960427165,-150.0,0.00042376,30]
[393743969,1762960427215,-150.0,0.00042513,30]
[393743970,1762960427256,-150.0,0.0004265,30]
[393743971,1762960427297,-255.79899462,0.00042787,30]
[393743972,1762960427338,-238.24,0.00043,30]
[393743973,1762960427379,-481.35,0.00043,30]
[393743974,1762960427421,-500.0,0.00043248,120]
[393743975,1762960427462,-200.0,0.00043248,120]
[393743976,1762960427503,-501.22,0.00043835,120]
[393743977,1762960427545,-500.0,0.00043836,31]
[393743978,1762960427587,-8545.10721841,0.000445,30]
[393743979,1762960427634,-500000.0,0.0004495,120]
[393743980,1762960427681,-393499.08831284,0.00045,120]
[393743981,1762960427726,-200000.0,0.00045,120]
[393743982,1762960427771,-850000.0,0.00045,120]
[393743983,1762960427815,-1000000.0,0.00045,120]
[393743984,1762960427858,-155.0,0.00045,120]
[393743985,1762960427904,-6671.99966558,0.00045,120]
[393743986,1762960434509,193.04461276,0.00040362,30]
[393743988,1762960448928,-493328.00033442,0.00045,120]
[393743989,1762960448968,-1000.0,0.00045,120]
[393743990,1762960449007,-300.0,0.00045,60]
[393743991,1762960449046,-216.78,0.00045,120]
[393743992,1762960449088,-1168.02418306,0.00045,120]
[393743993,1762960449131,-800.71358189,0.00045,120]
[393743994,1762960449173,-382.71333505,0.00045,120]
[393743995,1762960449215,-516.19384973,0.00045,120]
[393743996,1762960449256,-689.66386882,0.00045,120]
[393743997,1762960449297,-197.05080079,0.00045,30]
[393743998,1762960449337,-192.74137536,0.00045,120]
[393743999,1762960449379,-504.04741499,0.00045,120]
[393744000,1762960449418,-215.0,0.00045,37]
[393744001,1762960449458,-150.0,0.00045,85]
[393744002,1762960449497,-348.30913355,0.00045,120]
[393744003,1762960449535,-1000.0,0.00045,30]
[393744004,1762960449573,-1000.0,0.00045,30]
[393744005,1762960449613,-420.0,0.00045,120]
[393744006,1762960449653,-300.0,0.00045,120]
[393744007,1762960449689,-150.0,0.00045,120]
[393744008,1762960449727,-150.0,0.00045,120]
[393744009,1762960449763,-150.0,0.00045,120]
[393744010,1762960449801,-1000000.0,0.0004525,120]
[393744011,1762960449839,-206.3313054,0.00045493,120]
[393744012,1762960449878,-206.52380219,0.00045493,120]
[393744013,1762960449915,-153.0,0.000455,120]
[393744014,1762960449956,-1003.43082263,0.000455,120]
[393744015,1762960449995,-854.69676505,0.00045543,120]
[393744016,1762960450037,-1000000.0,0.0004555,120]
[393744017,1762960450076,-494396.77942707,0.0004565,120]
[393744018,1762960453476,-505603.22057293,0.0004565,120]
[393744019,1762960453512,-675.39242696,0.000457,120]
[393744020,1762960453549,-1000000.0,0.0004575,120]
[393744021,1762960453586,-1000000.0,0.0004585,120]
[393744022,1762960453629,-206.42755379,0.00045858,120]
[393744023,1762960453668,-238.24,0.000459,30]
[393744024,1762960453708,-481.35,0.000459,30]
[393744025,1762960453747,-492795.36944632,0.0004595,120]
[393744026,1762960458834,-507204.63055368,0.0004595,120]
[393744027,1762960458875,-1000000.0,0.00046,120]
[393744028,1762960458918,-200.0,0.00046,120]
[393744029,1762960458955,-781.41340983,0.00046,120]
[393744030,1762960458992,-1000.0,0.00046,30]
[393744031,1762960459033,-204.20584229,0.00046,30]
[393744032,1762960459073,-201.88712095,0.00046,120]
[393744033,1762960459112,-558.92952792,0.00046,90]
[393744034,1762960459152,-239.36,0.00046,30]
[393744035,1762960459194,-155.0,0.000461,120]
[393744036,1762960459240,-417.55427,0.000461,31]
[393744037,1762960459279,-966.70292906,0.0004613,120]
[393744038,1762960459318,-1000000.0,0.0004615,120]
[393744039,1762960459357,-153.0,0.000462,120]
[393744040,1762960459398,-1000000.0,0.0004625,120]
[393744041,1762960459440,-1000000.0,0.0004625,120]
[393744042,1762960459484,-487917.31634627,0.0004635,120]
[393744043,1762960462748,-512082.68365373,0.0004635,120]
[393744044,1762960462786,-279.42042368,0.000464,120]
[393744045,1762960462824,-1231.22550186,0.00046466,120]
[393744046,1762960462868,-1000000.0,0.000465,120]
[393744047,1762960462909,-1000000.0,0.0004675,120]
[393744048,1762960462947,-411.42126828,0.000468,120]
[393744049,1762960462986,-682.09280673,0.000468,120]
[393744050,1762960463024,-229.0,0.00046849,90]
[393744051,1762960463063,-153.0,0.000469,120]
[393744052,1762960463102,-212.0,0.0004698,30]
[393744053,1762960463142,-1000000.0,0.00047,120]
[393744054,1762960463188,-1000000.0,0.00047,120]
[393744055,1762960463230,-484719.15634572,0.00047,120]
[393744056,1762960466102,-515280.84365428,0.00047,120]
[393744057,1762960466143,-1000000.0,0.00047,120]
[393744058,1762960466183,-1000000.0,0.00047,120]
[393744059,1762960466230,-1000000.0,0.00047,120]
[393744060,1762960466284,-1000000.0,0.00047,120]
[393744061,1762960466328,-484719.15634572,0.00047,120]
[393744062,1762960468985,-174.32,0.000403,60]
[393744063,1762960469315,-515280.84365428,0.00047,120]
[393744064,1762960469360,-1000000.0,0.00047,120]
[393744065,1762960469402,-1000000.0,0.00047,120]
[393744066,1762960469447,-1000000.0,0.00047,120]
[393744067,1762960469489,-1000000.0,0.00047,120]
[393744068,1762960469529,-484544.83634572,0.00047,120]
[393744069,1762960472238,-515455.16365428,0.00047,120]
[393744070,1762960472279,-1000000.0,0.00047,120]
[393744071,1762960472315,-611.0,0.00047,30]
[393744072,1762960472351,-611.0236964,0.00047,30]
[393744073,1762960472391,-229.0,0.00047,90]
[393744074,1762960472426,-155.0,0.000471,120]
[393744075,1762960472466,-884.29,0.00047204,120]
[393744076,1762960472504,-1000000.0,0.0004725,120]
[393744077,1762960472541,-221.16019437,0.00047308,120]
[393744078,1762960472576,-181.31,0.00047373,120]
[393744079,1762960472615,-500000.0,0.000475,120]
[393744080,1762960472651,-769.61258493,0.000475,120]
[393744081,1762960472688,-238.24,0.000476,30]
[393744082,1762960472725,-481.35,0.000476,30]
[393744083,1762960472762,-153.0,0.000477,120]
[393744084,1762960472798,-212.0,0.00047945,120]
[393744085,1762960472836,-500000.0,0.00048,120]
[393744086,1762960472871,-1000.0,0.00048,120]
[393744087,1762960472909,-200.0,0.00048,120]
[393744088,1762960472949,-246.89887641,0.00048,120]
[393744089,1762960472988,-580.31202931,0.00048,120]
[393744090,1762960473026,-501.16122283,0.00048,120]
[393744091,1762960473065,-159.171946,0.00048,120]
[393744092,1762960473101,-700.0,0.00048,120]
[393744093,1762960473142,-500.0,0.00048,120]
[393744094,1762960473183,-150.0,0.00048,120]
[393744095,1762960473222,-150.0,0.00048,120]
[393744096,1762960473260,-150.0,0.00048,120]
[393744097,1762960473297,-155.0,0.000481,120]
[393744098,1762960473337,-500000.0,0.0004825,120]
[393744099,1762960473378,-500000.0,0.000483,120]
[393744100,1762960473423,-153.0,0.000484,120]
[393744101,1762960473471,-475152.30579547,0.000484,120]
[393744102,1762960478662,-24847.69420453,0.000484,120]
[393744103,1762960478706,-428.94,0.00048426,30]
[393744104,1762960478752,-150.0,0.00048491,120]
[393744105,1762960478800,-500000.0,0.000485,120]
[393744106,1762960478845,-176.66,0.000485,90]
[393744107,1762960478891,-150.0,0.00048553,120]
[393744108,1762960478937,-500000.0,0.000486,120]
[393744109,1762960478979,-500000.0,0.000487,120]
[393744110,1762960479021,-500000.0,0.0004875,120]
[393744111,1762960479059,-500.0,0.00048767,120]
[393744112,1762960479099,-500.0,0.00048767,120]
[393744113,1762960479138,-500.0,0.00048767,120]
[393744114,1762960479178,-500.0,0.00048767,120]
[393744115,1762960479220,-161.96832469,0.00048767,120]
[393744116,1762960479260,-1000.0,0.000488,120]
[393744117,1762960479300,-1000.0,0.000488,120]
[393744118,1762960479340,-1000.0,0.000488,120]
[393744119,1762960479380,-1000.0,0.000488,120]
[393744120,1762960479422,-1000.0,0.000488,120]
[393744121,1762960479465,-777.85477522,0.0004888,120]
[393744122,1762960479506,-500000.0,0.000489,120]
[393744123,1762960479551,-387.07539935,0.000489,120]
[393744124,1762960479592,-229.0,0.00048904,90]
[393744125,1762960479631,-213.0,0.0004899,30]
[393744126,1762960479671,-212.0,0.0004899,30]
[393744127,1762960479711,-212.0,0.0004899,30]
[393744128,1762960479752,-212.0,0.0004899,30]
[393744129,1762960479792,-500000.0,0.00049,120]
[393744130,1762960479830,-544.19526731,0.00049,120]
[393744131,1762960479869,-787.25838114,0.00049,30]
[393744132,1762960479907,-188.57176571,0.00049,120]
[393744133,1762960479948,-153.0,0.000491,120]
[393744134,1762960479988,-155.0,0.000492,120]
[393744135,1762960480031,-500000.0,0.0004925,120]
[393744136,1762960480070,-500.0,0.00049315,120]
[393744137,1762960480108,-500.0,0.00049315,120]
[393744138,1762960480149,-500.0,0.00049315,120]
[393744139,1762960480193,-500.0,0.00049315,120]
[393744140,1762960480232,-436.63209979,0.00049315,120]
[393744141,1762960480462,-324.16590719,0.00049315,120]
[393744142,1762960480500,-466.06107422,0.00049315,120]
[393744143,1762960480538,-422.42202689,0.00049315,120]
[393744144,1762960480576,-934.78,0.00049315,120]
[393744145,1762960480612,-500.0,0.00049315,120]
[393744146,1762960480651,-500.0,0.00049315,33]
[393744147,1762960480691,-2365.76301515,0.000495,120]
[393744148,1762960480730,-934.78,0.00049589,120]
[393744149,1762960480773,-500.0,0.00049589,120]
[393744150,1762960480813,-150.0,0.00049627,120]
[393744151,1762960480850,-238.24,0.000497,30]
[393744152,1762960480888,-481.35,0.000497,30]
[393744153,1762960480928,-150.0,0.00049773,120]
[393744154,1762960480978,-934.78,0.00049863,120]
[393744155,1762960481025,-500.0,0.00049863,120]
[393744156,1762960481066,-1784.90709023,0.00049885,120]
[393744157,1762960481109,-153.0,0.000499,120]
[393744158,1762960481151,-235.45122327,0.00049999,120]
[393744159,1762960481193,-276.88486547,0.00049999,120]
[393744160,1762960481237,-356.16782169,0.00049999,120]
[393744161,1762960481277,-549.38618764,0.00049999,120]
[393744162,1762960481320,-202.82893356,0.00049999,120]
[393744163,1762960481362,-193.81940582,0.00049999,120]
[393744164,1762960481405,-249.31747519,0.00049999,120]
[393744165,1762960481445,-164.81585629,0.00049999,120]
[393744166,1762960481488,-384.57033135,0.00049999,120]
[393744167,1762960481530,-50000.0,0.0005,80]
[393744168,1762960481570,-255.27,0.0005,120]
[393744169,1762960481614,-255.37,0.0005,120]
[393744170,1762960481659,-239.36,0.0005,120]
[393744171,1762960481700,-216.78,0.0005,120]
[393744172,1762960481740,-200.0,0.0005,120]
[393744173,1762960481781,-457.72199812,0.0005,120]
[393744174,1762960481819,-217.59100313,0.0005,120]
[393744175,1762960481857,-735.62979195,0.0005,120]
[393744176,1762960481897,-1073.27899357,0.0005,120]
[393744177,1762960481937,-1083.33703616,0.0005,120]
[393744178,1762960481977,-225.03998704,0.0005,120]
[393744179,1762960482018,-483.45033823,0.0005,120]
[393744180,1762960482058,-165.07826133,0.0005,120]
[393744181,1762960482099,-500.0,0.0005,30]
[393744182,1762960482139,-616.00605298,0.0005,120]
[393744183,1762960482183,-200.0,0.0005,120]
[393744184,1762960482224,-934.78,0.00050136,120]
[393744185,1762960482266,-500.0,0.00050136,120]
[393744186,1762960482310,-155.0,0.000502,120]
[393744187,1762960482350,-934.78,0.0005041,120]
[393744188,1762960482388,-500.0,0.0005041,120]
[393744189,1762960482429,-153.0,0.000506,120]
[393744190,1762960482471,-934.78,0.00050684,120]
[393744191,1762960482511,-500.0,0.00050684,120]
[393744192,1762960482552,-934.78,0.00050958,120]
[393744193,1762960482591,-500.0,0.00050958,120]
[393744194,1762960482634,-628.77,0.00051,30]
[393744195,1762960482674,-155.0,0.000512,120]
[393744196,1762960482715,-934.78,0.00051232,120]
[393744197,1762960482756,-473.97588296,0.00051232,120]
[393744198,1762960482797,-153.0,0.000513,120]
[393744199,1762960482836,-235.0,0.00051349,120]
[393744200,1762960482877,-934.78,0.00051506,120]
[393744201,1762960482917,-934.78,0.0005178,120]
[393744202,1762960482959,-50000.0,0.00052,84]
[393744203,1762960483003,-200.0,0.00052,120]
[393744204,1762960483043,-1102.44521298,0.00052,120]
[393744205,1762960483087,-1000.0,0.00052017,120]
[393744206,1762960483129,-934.78,0.00052054,120]
[393744207,1762960483167,-908.8,0.00052055,120]
[393744208,1762960483209,-153.0,0.000521,120]
[393744209,1762960483246,-155.0,0.000522,120]
[393744210,1762960483286,-884.29,0.00052251,120]
[393744211,1762960483329,-934.78,0.00052328,120]
[393744212,1762960483368,-238.24,0.000524,30]
[393744213,1762960483406,-481.35,0.000524,30]
[393744214,1762960483445,-934.78,0.00052602,120]
[393744215,1762960483486,-231.89549984,0.000527,120]
[393744216,1762960483527,-153.0,0.000528,120]
[393744217,1762960483566,-934.78,0.00052876,120]
[393744218,1762960483604,-600.0,0.00052999,70]
[393744219,1762960483644,-50000.0,0.00053,83]
[393744220,1762960483686,-1000.0,0.00053,120]
[393744221,1762960483723,-1500.0,0.00053,30]
[393744222,1762960483761,-416.48943486,0.00053,120]
[393744223,1762960483798,-2467.72615008,0.00053,30]
[393744224,1762960483836,-3050.0,0.00053,120]
[393744225,1762960483875,-522.96,0.00053,90]
[393744226,1762960483915,-150.0,0.00053058,120]
[393744227,1762960483954,-150.0,0.00053102,120]
[393744228,1762960483996,-934.78,0.0005315,120]
[393744229,1762960484035,-155.0,0.000533,120]
[393744230,1762960484075,-934.78,0.00053424,120]
[393744231,1762960484114,-153.0,0.000535,120]
[393744232,1762960484155,-934.78,0.00053698,120]
[393744233,1762960484195,-1000.0,0.000538,120]
[393744234,1762960484235,-934.78,0.00053972,120]
[393744235,1762960484273,-600.0,0.00053997,31]
[393744236,1762960484314,-206.20153531,0.00053999,120]
[393744237,1762960484356,-213.60766849,0.00053999,120]
[393744238,1762960484399,-600.0,0.00053999,30]
[393744239,1762960484443,-600.0,0.00053999,94]
[393744240,1762960484484,-50000.0,0.00054,84]
[393744241,1762960484522,-1500.0,0.00054,30]
[393744242,1762960484565,-200.0,0.00054,120]
[393744243,1762960484603,-304.52226177,0.00054,120]
[393744244,1762960484641,-5000.0,0.00054,120]
[393744245,1762960484845,-934.78,0.00054246,120]
[393744246,1762960484886,-153.0,0.000543,120]
[393744247,1762960484928,-155.0,0.000543,120]
[393744248,1762960484969,-1094.0,0.00054362,30]
[393744249,1762960485009,-150.0,0.00054398,120]
[393744250,1762960485047,-600.0,0.00054439,49]
[393744251,1762960485084,-600.0,0.00054519,120]
[393744252,1762960485123,-934.78,0.0005452,120]
[393744253,1762960485161,-238.24,0.000547,30]
[393744254,1762960485201,-210.67809692,0.0005474,30]
[393744255,1762960485239,-229.0,0.00054773,120]
[393744256,1762960485275,-934.78,0.00054794,120]
[393744257,1762960485312,-500.0,0.00054794,120]
[393744258,1762960485350,-500.0,0.00054794,120]
[393744259,1762960485387,-500.0,0.00054794,120]
[393744260,1762960485426,-580.49307085,0.00054794,120]
[393744261,1762960485467,-150.0,0.00054795,120]
[393744262,1762960485505,-150.0,0.00054795,120]
[393744263,1762960485542,-150.0,0.00054795,120]
[393744264,1762960485581,-150.0,0.00054795,120]
[393744265,1762960485615,-150.0,0.00054795,120]
[393744266,1762960485654,-150.0,0.00054795,120]
[393744267,1762960485691,-150.0,0.00054795,120]
[393744268,1762960485727,-150.0,0.00054795,120]
[393744269,1762960485763,-150.0,0.00054795,120]
[393744270,1762960485799,-150.0,0.00054795,120]
[393744271,1762960485834,-150.0,0.00054795,120]
[393744272,1762960485869,-150.0,0.00054795,120]
[393744273,1762960485905,-150.0,0.00054795,120]
[393744274,1762960485942,-150.0,0.00054795,120]
[393744275,1762960485981,-150.0,0.00054795,120]
[393744276,1762960486019,-164.68874973,0.00054795,120]
[393744277,1762960486056,-150.0,0.00054795,120]
[393744278,1762960486092,-500.0,0.00054795,35]
[393744279,1762960488632,155.32327082,0.00054712,30]
[393744280,1762960508571,-151.29,0.00020074,2]
[393744281,1762960508613,-250.0,0.00020717,2]
[393744282,1762960508652,-151.29,0.0002136,2]
[393744283,1762960508697,-250.0,0.00022081,2]
[393744284,1762960508739,-151.29,0.00022645,2]
[393744285,1762960508776,-250.0,0.00022645,2]
[393744286,1762960508814,-151.29,0.00023931,2]
[393744287,1762960508848,-151.29,0.00025217,2]
[393744288,1762960508881,-151.29,0.00026503,2]
[393744289,1762960508914,-1000.0,0.000269,30]
[393744290,1762960508947,-151.29,0.00027788,2]
[393744291,1762960508980,-151.29,0.00029074,2]
[393744292,1762960509017,-151.29,0.0003036,2]
[393744293,1762960535446,1419.7505518,0.00040362,120]
[393744294,1762960578031,150.77,0.00013699,2]
[393744296,1762960681181,250.0,0.00017,2]
[393744297,1762960721347,5172.0,0.00040362,30]
[393744298,1762960785116,1122.0,0.00030137,120]
[393744300,1762960803268,997.0,0.00040362,30]
[393744301,1762960860183,1149.0,0.00040362,30]
[393744302,1762960862068,200.0,0.00040362,30]
[393744303,1762960865827,1000.0,0.00040362,30]
[393744304,1762960865870,1000.0,0.00040362,30]
[393744305,1762960866662,466.26599046,0.00040362,30]
[393744306,1762960867334,1000.0,0.00040362,30]
[393744307,1762960867393,1000.0,0.00040362,30]
[393744308,1762960867676,985.50622519,0.00040362,120]
[393744309,1762960868480,843.23831103,0.00040362,30]
[393744310,1762960868799,981.22969114,0.00040362,30]
[393744312,1762960926192,1351.44308565,0.00040438,120]
[393744313,1762960941228,150.0,0.00040438,120]
[393744314,1762960942517,150.0,0.00040438,120]
[393744315,1762960943849,150.0,0.00040438,120]
[393744316,1762960945177,150.0,0.00040438,120]
[393744317,1762960947452,200.0,0.00040438,30]
[393744318,1762960948047,300.0,0.00040438,30]
[393744319,1762960964443,150.0,0.00040438,30]
[393744320,1762960965080,215.8,0.00040438,30]
[393744321,1762960965875,215.8,0.00040438,30]
[393744322,1762960968403,2000.0,0.00040438,30]
[393744323,1762960968735,2000.0,0.00040438,30]
[393744324,1762960975803,-150.77,0.00021918,2]
[393744325,1762960975831,-448.0,0.00021918,2]
[393744326,1762960975863,-150.77,0.00030137,2]
[393744327,1762960980422,150.0,0.00040438,120]
[393744328,1762960981116,150.0,0.00040438,120]
[393744329,1762960981899,150.0,0.00040438,120]
[393744330,1762960982636,150.0,0.00040438,120]
[393744331,1762960983391,150.0,0.00040438,120]
[393744332,1762960984522,2000.0,0.00040438,30]
[393744333,1762960988202,2000.0,0.00040438,30]
[393744334,1762960989023,2000.0,0.00040438,30]
[393744335,1762961000316,452.32362992,0.00040438,30]
[393744336,1762961000567,512.6352706,0.00040438,120]
[393744337,1762961004441,2000.0,0.00040438,30]
[393744339,1762961008554,2000.0,0.00040438,30]
[393744340,1762961026342,865.12620302,0.00040438,30]
[393744341,1762961029162,2000.0,0.00040438,30]
[393744342,1762961050187,2000.0,0.00040436,30]
[393744343,1762961066064,2918.20405742,0.00040436,60]
[393744346,1762961082998,150.01,0.00040436,30]
[393744347,1762961102846,150.02,0.00040436,30]
[393744348,1762961103605,1000.0,0.00040436,30]
[393744349,1762961103649,1000.0,0.00040436,30]
[393744350,1762961103833,1000.0,0.00040436,30]
[393744351,1762961103964,150.02,0.00040436,30]
[393744352,1762961104777,1000.0,0.00040436,30]
[393744353,1762961104843,1000.0,0.00040436,30]
[393744354,1762961104976,1000.0,0.00040436,30]
[393744355,1762961105896,150.02,0.00040436,30]
[393744356,1762961105948,1000.0,0.00040436,30]
[393744357,1762961106002,1000.0,0.00040436,30]
[393744358,1762961106206,1000.0,0.00040436,30]
[393744359,1762961107066,1000.0,0.00040436,30]
[393744360,1762961107159,1000.0,0.00040436,30]
[393744361,1762961107279,150.02,0.00040436,30]
[393744362,1762961107473,1000.0,0.00040436,30]
[393744363,1762961109864,159.999996,0.00040436,120]
[393744364,1762961110037,150.02,0.00040436,30]
[393744365,1762961111160,536.06891236,0.00040436,30]
[393744366,1762961111988,150.02,0.00040436,30]
[393744367,1762961112034,401.12579449,0.00040436,30]
[393744368,1762961112159,538.41686003,0.00040436,60]
[393744369,1762961112208,772.43048738,0.00040436,30]
[393744370,1762961112689,712.38649238,0.00040436,120]
[393744371,1762961112736,1238.64069894,0.00040436,91]
[393744372,1762961113450,150.02,0.00040436,30]
[393744373,1762961114596,150.02,0.00040436,30]
[393744374,1762961114841,919.38200457,0.00040436,30]
[393744375,1762961116339,251.19355782,0.00040436,120]
[393744376,1762961117050,150.02,0.00040436,30]
[393744377,1762961117790,954.86627576,0.00040436,30]
[393744378,1762961118405,150.02,0.00040436,30]
[393744379,1762961119913,719.84419432,9e-05,2]
[393744380,1762961120498,344.37102772,0.00040436,120]
[393744381,1762961122543,150.02,0.00040436,30]
[393744382,1762961123398,429.58555022,0.00040436,120]
[393744383,1762961123505,775.66395962,0.00040436,30]
[393744384,1762961123554,520.94425158,0.00040436,120]
[393744385,1762961125806,230.61668907,0.00040436,120]
[393744386,1762961127656,150.02,0.00040436,30]
[393744387,1762961127960,1046.86478337,0.00040436,30]
[393744388,1762961128371,150.02,0.00040436,30]
[393744389,1762961128648,620.57487296,0.00040436,30]
[393744390,1762961130070,150.02,0.00040436,30]
[393744391,1762961131391,234.14723546,0.00040436,120]
[393744392,1762961131494,150.02,0.00040436,30]
[393744394,1762961136905,150.02,0.00040436,30]
[393744395,1762961137166,313.97882056,0.00040436,120]
[393744396,1762961137345,150.02,0.00040436,30]
[393744397,1762961138631,150.02,0.00040436,30]
[393744398,1762961140246,150.02,0.00040436,30]
[393744399,1762961140519,431.40335696,0.00040436,30]
[393744400,1762961141033,285.86731121,0.00040436,120]
[393744401,1762961141870,150.02,0.00040436,30]
[393744402,1762961142567,946.68794003,0.00040436,30]
[393744403,1762961143447,168.86701708,0.00040436,120]
[393744404,1762961143671,150.02,0.00040436,30]
[393744405,1762961144363,1008.32745293,0.00040436,120]
[393744406,1762961146164,157.29902886,0.00040436,120]
[393744407,1762961146410,1236.07460837,0.00040436,120]
[393744408,1762961146770,150.02,0.00040436,30]
[393744409,1762961148863,150.02,0.00040436,30]
[393744410,1762961149346,900.35331116,0.00040436,30]
[393744411,1762961150542,196.01619285,0.00040436,30]
[393744412,1762961150925,150.02,0.00040436,30]
[393744413,1762961152355,150.02,0.00040436,30]
[393744414,1762961154906,150.02,0.00040436,30]
[393744415,1762961156324,901.88398335,0.00040436,120]
[393744416,1762961157019,909.15273189,0.00040436,30]
[393744417,1762961157134,150.02,0.00040436,30]
[393744418,1762961157809,291.05651118,0.00040436,120]
[393744419,1762961159360,150.02,0.00040436,30]
[393744420,1762961159592,750.01420738,0.00040436,30]
[393744421,1762961159782,1548.8113597,0.00040436,90]
[393744422,1762961160848,200.0,0.00040436,30]